fUSD/lending_fUSD_20240412
["ID","MTS","AMOUNT","RATE_DAILY","PERIOD"]
[322261394,1712916688051,-3764.32,0.00032876,2]
[322261395,1712916688066,-1203.6,0.00032876,2]
[322261396,1712916688081,-1505.66,0.00032876,2]
[322261397,1712916688095,-228.83,0.00032877,2]
[322261398,1712916688110,-152.35,0.00032877,2]
[322261399,1712916688124,-321.31,0.00032877,2]
[322261400,1712916688138,-150.0,0.00032877,30]
[322261401,1712916688153,-156.12850796,0.000329,2]
[322261402,1712916688167,-972.68108238,0.00033,2]
[322261403,1712916688182,-506.52,0.00033108,7]
[322261404,1712916688197,-500.0,0.00033108,7]
[322261405,1712916688212,-500.0,0.00033108,7]
[322261406,1712916688227,-527.69,0.00033108,7]
[322261407,1712916688242,-500.0,0.00033108,7]
[322261408,1712916688257,-500.0,0.00033108,7]
[322261409,1712916688271,-666.66,0.00033108,7]
[322261410,1712916688288,-500.0,0.00033108,7]
[322261411,1712916688303,-752.76,0.00033108,7]
[322261412,1712916688319,-586.11,0.00033108,7]
[322261413,1712916688335,-537.49,0.00033108,7]
[322261414,1712916688350,-500.0,0.00033108,7]
[322261415,1712916688366,-764.86,0.00033108,7]
[322261416,1712916688380,-500.0,0.00033108,7]
[322261417,1712916688394,-550.76,0.00033108,7]
[322261418,1712916688408,-500.0,0.00033108,7]
[322261419,1712916688422,-500.0,0.00033108,7]
[322261420,1712916688436,-813.78,0.00033108,7]
[322261421,1712916688449,-720.83,0.00033108,7]
[322261422,1712916688463,-500.0,0.00033108,7]
[322261423,1712916688476,-638.66,0.00033109,7]
[322261424,1712916688490,-283.29461304,0.00033109,7]
[322261425,1712916688504,-500.0,0.00033109,7]
[322261426,1712916688518,-500.0,0.00033109,7]
[322261427,1712916688531,-500.0,0.00033109,7]
[322261428,1712916688544,-577.83,0.00033109,7]
[322261429,1712916688558,-544.32,0.00033109,7]
[322261430,1712916688572,-638.14,0.00033109,7]
[322261431,1712916688586,-708.33,0.00033109,2]
[322261432,1712916688600,-500.0,0.00033109,7]
[322261433,1712916688614,-202.73379348,0.00033109,7]
[322261434,1712916688628,-597.04,0.00033109,7]
[322261435,1712916688642,-500.0,0.00033109,7]
[322261436,1712916688655,-507.78,0.00033109,7]
[322261437,1712916688670,-500.0,0.00033109,7]
[322261438,1712916688685,-500.0,0.00033109,7]
[322261439,1712916688701,-430.24,0.0003315,7]
[322261440,1712916688716,-500.0,0.0003315,7]
[322261441,1712916688731,-844.56,0.0003315,7]
[322261442,1712916688745,-1528.81,0.0003315,7]
[322261443,1712916688759,-513.6,0.0003315,7]
[322261444,1712916688774,-273.50512309,0.0003315,7]
[322261445,1712916688788,-1391.19,0.0003315,7]
[322261446,1712916688801,-1076.28,0.0003315,7]
[322261447,1712916688815,-550.78,0.0003315,7]
[322261448,1712916688829,-613.24,0.0003315,7]
[322261449,1712916688843,-578.33,0.0003315,7]
[322261450,1712916688857,-4360.31,0.0003315,7]
[322261451,1712916688871,-589.66,0.0003315,7]
[322261452,1712916688886,-2207.75,0.0003315,7]
[322261453,1712916689039,-730.85,0.0003315,7]
[322261454,1712916689049,-834.74,0.0003315,7]
[322261455,1712916689057,-503.47,0.0003315,7]
[322261456,1712916689067,-652.05,0.0003315,7]
[322261457,1712916689076,-1520.01,0.0003315,7]
[322261458,1712916689087,-504.37,0.0003315,7]
[322261459,1712916689096,-687.97,0.0003315,7]
[322261460,1712916689105,-942.27,0.0003315,7]
[322261461,1712916689114,-1124.32,0.0003315,7]
[322261462,1712916689123,-500.0,0.0003315,7]
[322261463,1712916689132,-500.0,0.0003315,7]
[322261464,1712916689141,-724.59,0.0003315,7]
[322261465,1712916689150,-1077.64,0.0003315,7]
[322261466,1712916689159,-1340.25,0.0003315,7]
[322261467,1712916689168,-283.36,0.0003315,7]
[322261468,1712916689177,-1717.34,0.0003315,7]
[322261469,1712916689186,-1068.06,0.0003315,7]
[322261470,1712916689196,-641.93,0.0003315,7]
[322261471,1712916689205,-821.08,0.0003315,7]
[322261472,1712916689214,-604.09,0.0003315,7]
[322261473,1712916689223,-5530.8,0.0003315,7]
[322261474,1712916689233,-1904.72,0.0003315,7]
[322261475,1712916689242,-800.47,0.0003315,7]
[322261476,1712916689251,-2261.68,0.0003315,7]
[322261477,1712916689260,-604.39,0.0003315,7]
[322261478,1712916689269,-2052.73,0.0003315,7]
[322261479,1712916689278,-1035.94,0.0003315,7]
[322261480,1712916689287,-1186.85,0.0003315,7]
[322261481,1712916689296,-930.87,0.0003315,7]
[322261482,1712916689305,-763.34,0.0003315,7]
[322261483,1712916689314,-1062.21,0.0003315,7]
[322261484,1712916689323,-888.39,0.0003315,7]
[322261485,1712916689332,-684.38,0.0003315,7]
[322261486,1712916689341,-925.96,0.0003315,7]
[322261487,1712916689350,-1070.46,0.0003315,7]
[322261488,1712916689359,-510.32,0.0003315,7]
[322261489,1712916689370,-9883.5,0.0003315,7]
[322261490,1712916689379,-683.24,0.0003315,7]
[322261491,1712916689389,-3764.32,0.0003315,7]
[322261492,1712916689398,-1203.6,0.0003315,7]
[322261493,1712916689407,-1505.66,0.0003315,7]
[322261494,1712916689416,-414.16,0.00033165,2]
[322261495,1712916689425,-245.72,0.000332,2]
[322261496,1712916689434,-245.72,0.000332,2]
[322261497,1712916689443,-245.72,0.000332,2]
[322261498,1712916689452,-245.72,0.000332,2]
[322261499,1712916689462,-245.72,0.000332,2]
[322261500,1712916689471,-245.72,0.000332,2]
[322261501,1712916689480,-245.72,0.000332,2]
[322261502,1712916689489,-245.72,0.000332,2]
[322261503,1712916689498,-245.72,0.000332,2]
[322261504,1712916689507,-245.72,0.000332,2]
[322261505,1712916689516,-245.72,0.000332,2]
[322261506,1712916689525,-245.72,0.000332,2]
[322261507,1712916689537,-154.6828105,0.00033256,7]
[322261508,1712916689546,-152.32027785,0.000333,7]
[322261509,1712916689556,-166.81018581,0.00033318,7]
[322261510,1712916689566,-506.52,0.00033382,7]
[322261511,1712916689575,-500.0,0.00033382,7]
[322261512,1712916689585,-500.0,0.00033382,7]
[322261513,1712916689595,-527.69,0.00033382,7]
[322261514,1712916689604,-500.0,0.00033382,7]
[322261515,1712916689613,-500.0,0.00033382,7]
[322261516,1712916689623,-666.66,0.00033382,7]
[322261517,1712916689632,-500.0,0.00033382,7]
[322261518,1712916689642,-752.76,0.00033382,7]
[322261519,1712916689652,-586.11,0.00033382,7]
[322261520,1712916689662,-537.49,0.00033382,7]
[322261521,1712916689673,-500.0,0.00033382,7]
[322261522,1712916689686,-764.86,0.00033382,7]
[322261523,1712916689696,-500.0,0.00033382,7]
[322261524,1712916689705,-550.76,0.00033382,7]
[322261525,1712916689715,-500.0,0.00033382,7]
[322261526,1712916689727,-500.0,0.00033382,7]
[322261527,1712916689736,-813.78,0.00033382,7]
[322261528,1712916689746,-720.83,0.00033382,7]
[322261529,1712916689756,-500.0,0.00033382,7]
[322261530,1712916689766,-638.66,0.00033383,7]
[322261531,1712916689777,-500.0,0.00033383,7]
[322261532,1712916689788,-500.0,0.00033383,7]
[322261533,1712916689797,-500.0,0.00033383,7]
[322261534,1712916689807,-577.83,0.00033383,7]
[322261535,1712916689816,-544.32,0.00033383,7]
[322261536,1712916689826,-638.14,0.00033383,7]
[322261537,1712916689836,-708.33,0.00033383,2]
[322261538,1712916689849,-500.0,0.00033383,7]
[322261539,1712916689861,-597.04,0.00033383,7]
[322261540,1712916689870,-500.0,0.00033383,7]
[322261541,1712916689880,-507.78,0.00033383,7]
[322261542,1712916689890,-983.26,0.000334,2]
[322261543,1712916689899,-592.68,0.00033424,7]
[322261544,1712916689909,-844.56,0.00033424,7]
[322261545,1712916689919,-1528.81,0.00033424,7]
[322261546,1712916689930,-513.6,0.00033424,7]
[322261547,1712916689939,-1391.19,0.00033424,7]
[322261548,1712916689950,-1076.28,0.00033424,7]
[322261549,1712916689962,-550.78,0.00033424,7]
[322261550,1712916689975,-613.24,0.00033424,7]
[322261551,1712916689985,-578.33,0.00033424,7]
[322261552,1712916689997,-4360.31,0.00033424,7]
[322261553,1712916690009,-589.66,0.00033424,7]
[322261554,1712916690020,-2207.75,0.00033424,7]
[322261555,1712916690030,-730.85,0.00033424,7]
[322261556,1712916690041,-834.74,0.00033424,7]
[322261557,1712916690051,-503.47,0.00033424,7]
[322261558,1712916690061,-652.05,0.00033424,7]
[322261559,1712916690072,-1520.01,0.00033424,7]
[322261560,1712916690083,-504.37,0.00033424,7]
[322261561,1712916690096,-687.97,0.00033424,7]
[322261562,1712916690107,-942.27,0.00033424,7]
[322261563,1712916690117,-210.86600603,0.00033424,7]
[322261564,1712916690129,-1124.32,0.00033424,7]
[322261565,1712916690142,-368.38,0.00033424,7]
[322261566,1712916690153,-724.59,0.00033424,7]
[322261567,1712916690165,-1077.64,0.00033424,7]
[322261568,1712916690175,-1340.25,0.00033424,7]
[322261569,1712916690185,-1717.34,0.00033424,7]
[322261570,1712916690196,-1068.06,0.00033424,7]
[322261571,1712916690207,-641.93,0.00033424,7]
[322261572,1712916690218,-821.08,0.00033424,7]
[322261573,1712916690228,-604.09,0.00033424,7]
[322261574,1712916690239,-5530.8,0.00033424,7]
[322261575,1712916690248,-1904.72,0.00033424,7]
[322261576,1712916690258,-800.47,0.00033424,7]
[322261577,1712916690269,-2261.68,0.00033424,7]
[322261578,1712916690280,-604.39,0.00033424,7]
[322261579,1712916690290,-2052.73,0.00033424,7]
[322261580,1712916690302,-1035.94,0.00033424,7]
[322261581,1712916690312,-1186.85,0.00033424,7]
[322261582,1712916690321,-763.34,0.00033424,7]
[322261583,1712916690334,-930.87,0.00033424,7]
[322261584,1712916690345,-1062.21,0.00033424,7]
[322261585,1712916690357,-888.39,0.00033424,7]
[322261586,1712916690369,-684.38,0.00033424,7]
[322261587,1712916690379,-925.96,0.00033424,7]
[322261588,1712916690390,-1070.46,0.00033424,7]
[322261589,1712916690401,-510.32,0.00033424,7]
[322261590,1712916690413,-9883.5,0.00033424,7]
[322261591,1712916690423,-683.24,0.00033424,7]
[322261592,1712916690433,-3764.32,0.00033424,7]
[322261593,1712916690444,-1203.6,0.00033424,7]
[322261594,1712916690455,-1505.66,0.00033424,7]
[322261595,1712916690466,-40558.77039403,0.0003348,7]
[322261596,1712916690477,-154.6828105,0.00033489,7]
[322261597,1712916690487,-154.6828105,0.00033491,7]
[322261598,1712916690497,-170.3395982,0.00033499,30]
[322261599,1712916690507,-1137.11112217,0.000335,2]
[322261600,1712916690516,-609.5,0.000335,2]
[322261601,1712916690526,-4566.76,0.000335,2]
[322261602,1712916690537,-4566.76,0.000335,2]
[322261603,1712916690547,-4566.76,0.000335,2]
[322261604,1712916690557,-4566.76,0.000335,2]
[322261605,1712916690567,-4566.76,0.000335,2]
[322261606,1712916690577,-4566.76,0.000335,2]
[322261607,1712916690587,-4566.76,0.000335,2]
[322261608,1712916690597,-4566.76,0.000335,2]
[322261609,1712916690607,-4566.76,0.000335,2]
[322261610,1712916690618,-4566.76,0.000335,2]
[322261611,1712916690627,-4566.76,0.000335,2]
[322261612,1712916690638,-4566.76,0.000335,2]
[322261613,1712916690648,-4566.76,0.000335,2]
[322261614,1712916690658,-4566.76,0.000335,2]
[322261615,1712916690668,-4566.76,0.000335,2]
[322261616,1712916690679,-4566.76,0.000335,2]
[322261617,1712916690692,-4566.76,0.000335,2]
[322261618,1712916690703,-4566.76,0.000335,2]
[322261619,1712916690713,-4566.76,0.000335,2]
[322261620,1712916690724,-4566.76,0.000335,2]
[322261621,1712916690735,-200.0,0.00033594,10]
[322261622,1712916690746,-505.5348629,0.00033632,2]
[322261623,1712916690757,-154.99471212,0.00033641,7]
[322261624,1712916690769,-506.52,0.00033656,7]
[322261625,1712916690780,-500.0,0.00033656,7]
[322261626,1712916690791,-500.0,0.00033656,7]
[322261627,1712916690800,-527.69,0.00033656,7]
[322261628,1712916690809,-500.0,0.00033656,7]
[322261629,1712916690818,-500.0,0.00033656,7]
[322261630,1712916690828,-666.66,0.00033656,7]
[322261631,1712916690838,-500.0,0.00033656,7]
[322261632,1712916690849,-752.76,0.00033656,7]
[322261633,1712916690860,-586.11,0.00033656,7]
[322261634,1712916690870,-537.49,0.00033656,7]
[322261635,1712916690881,-500.0,0.00033656,7]
[322261636,1712916690892,-764.86,0.00033656,7]
[322261637,1712916690905,-500.0,0.00033656,7]
[322261638,1712916690916,-550.76,0.00033656,7]
[322261639,1712916690928,-500.0,0.00033656,7]
[322261640,1712916690939,-813.78,0.00033656,7]
[322261641,1712916691054,-720.83,0.00033656,7]
[322261642,1712916691065,-263.91,0.00033656,7]
[322261643,1712916691075,-638.66,0.00033657,7]
[322261644,1712916691086,-500.0,0.00033657,7]
[322261645,1712916691096,-500.0,0.00033657,7]
[322261646,1712916691106,-500.0,0.00033657,7]
[322261647,1712916691115,-577.83,0.00033657,7]
[322261648,1712916691126,-544.32,0.00033657,7]
[322261649,1712916691135,-638.14,0.00033657,7]
[322261650,1712916691146,-708.33,0.00033657,2]
[322261651,1712916691156,-597.04,0.00033657,7]
[322261652,1712916691166,-500.0,0.00033657,7]
[322261653,1712916691176,-507.78,0.00033657,7]
[322261654,1712916691185,-154.6828105,0.0003369,7]
[322261655,1712916691195,-844.62247258,0.00033698,7]
[322261656,1712916691206,-1529.00022767,0.00033698,7]
[322261657,1712916691216,-513.8129428,0.00033698,7]
[322261658,1712916691226,-1391.1950493,0.00033698,7]
[322261659,1712916691236,-1076.47,0.00033698,7]
[322261660,1712916691247,-550.90864808,0.00033698,7]
[322261661,1712916691258,-613.45,0.00033698,7]
[322261662,1712916691267,-578.445017,0.00033698,7]
[322261663,1712916691278,-4360.3600949,0.00033698,7]
[322261664,1712916691289,-589.72664915,0.00033698,7]
[322261665,1712916691301,-2207.89681494,0.00033698,7]
[322261666,1712916691311,-730.87,0.00033698,7]
[322261667,1712916691321,-834.9,0.00033698,7]
[322261668,1712916691331,-503.60794383,0.00033698,7]
[322261669,1712916691341,-652.2500759,0.00033698,7]
[322261670,1712916691350,-1520.13260326,0.00033698,7]
[322261671,1712916691360,-504.42977219,0.00033698,7]
[322261672,1712916691369,-688.0,0.00033698,7]
[322261673,1712916691378,-942.42277881,0.00033698,7]
[322261674,1712916691387,-1124.32,0.00033698,7]
[322261675,1712916691396,-724.76959511,0.00033698,7]
[322261676,1712916691406,-1077.64,0.00033698,7]
[322261677,1712916691415,-1340.31,0.00033698,7]
[322261678,1712916691425,-1717.41,0.00033698,7]
[322261679,1712916691436,-1068.06,0.00033698,7]
[322261680,1712916691445,-641.98454009,0.00033698,7]
[322261681,1712916691455,-821.0918565,0.00033698,7]
[322261682,1712916691464,-604.24650966,0.00033698,7]
[322261683,1712916691474,-5531.02999999,0.00033698,7]
[322261684,1712916691484,-1904.74,0.00033698,7]
[322261685,1712916691494,-800.58,0.00033698,7]
[322261686,1712916691504,-2261.72,0.00033698,7]
[322261687,1712916691513,-604.42,0.00033698,7]
[322261688,1712916691523,-2052.96348703,0.00033698,7]
[322261689,1712916691533,-1035.94,0.00033698,7]
[322261690,1712916691547,-1186.93,0.00033698,7]
[322261691,1712916691556,-763.42776867,0.00033698,7]
[322261692,1712916691567,-931.10519124,0.00033698,7]
[322261693,1712916691577,-1062.29,0.00033698,7]
[322261694,1712916691587,-888.57013806,0.00033698,7]
[322261695,1712916691597,-684.55975731,0.00033698,7]
[322261696,1712916691607,-926.12,0.00033698,7]
[322261697,1712916691618,-1070.62,0.00033698,7]
[322261698,1712916691627,-510.32146809,0.00033698,7]
[322261699,1712916691637,-9883.73,0.00033698,7]
[322261700,1712916691648,-683.42750401,0.00033698,7]
[322261701,1712916691657,-3764.49,0.00033698,7]
[322261702,1712916691668,-1203.6,0.00033698,7]
[322261703,1712916691677,-1505.83,0.00033698,7]
[322261704,1712916691688,-154.30704407,0.00033728,7]
[322261705,1712916691698,-154.6828105,0.0003377,7]
[322261706,1712916691709,-160.62596681,0.00033801,7]
[322261707,1712916691719,-767.25,0.00033804,2]
[322261708,1712916691731,-160.62596681,0.00033814,7]
[322261709,1712916691741,-157.83691746,0.00033881,7]
[322261710,1712916691751,-352591.79213683,0.000339,5]
[322261711,1712916691763,-1013.2,0.000339,2]
[322261712,1712916691773,-318.2,0.000339,2]
[322261713,1712916691783,-154.6828105,0.00033927,7]
[322261714,1712916691794,-506.52,0.0003393,7]
[322261715,1712916691804,-500.0,0.0003393,7]
[322261716,1712916691815,-500.0,0.0003393,7]
[322261717,1712916691826,-527.69,0.0003393,7]
[322261718,1712916691837,-500.0,0.0003393,7]
[322261719,1712916691847,-500.0,0.0003393,7]
[322261720,1712916691857,-666.66,0.0003393,7]
[322261721,1712916691868,-206.6,0.0003393,7]
[322261722,1712916691878,-752.76,0.0003393,7]
[322261723,1712916691889,-586.11,0.0003393,7]
[322261724,1712916691899,-537.49,0.0003393,7]
[322261725,1712916691910,-500.0,0.0003393,7]
[322261726,1712916691921,-764.86,0.0003393,7]
[322261727,1712916691931,-500.0,0.0003393,7]
[322261728,1712916691942,-550.76,0.0003393,7]
[322261729,1712916691951,-500.0,0.0003393,7]
[322261730,1712916691961,-813.78,0.0003393,7]
[322261731,1712916691971,-720.83,0.0003393,7]
[322261732,1712916691981,-638.66,0.00033931,7]
[322261733,1712916691992,-500.0,0.00033931,7]
[322261734,1712916692002,-500.0,0.00033931,7]
[322261735,1712916692012,-393.02045847,0.00033931,7]
[322261736,1712916692023,-577.83,0.00033931,7]
[322261737,1712916692033,-544.32,0.00033931,7]
[322261738,1712916692046,-638.14,0.00033931,7]
[322261739,1712916692055,-708.33,0.00033931,2]
[322261740,1712916692066,-597.04,0.00033931,7]
[322261741,1712916692076,-500.0,0.00033931,7]
[322261742,1712916692086,-507.78,0.00033931,7]
[322261743,1712916692095,-160.62596681,0.00033959,7]
[322261744,1712916692104,-160.62596681,0.00034008,7]
[322261745,1712916692114,-154.14042621,0.00034038,7]
[322261746,1712916692123,-154.6828105,0.00034049,7]
[322261747,1712916692135,-159.14360615,0.00034057,7]
[322261748,1712916692146,-154.6828105,0.00034083,7]
[322261749,1712916692156,-275.5,0.000341,2]
[322261750,1712916692165,-500.0,0.00034104,2]
[322261751,1712916692176,-313.0,0.00034104,2]
[322261752,1712916692186,-305.0,0.00034104,2]
[322261753,1712916692197,-301.0,0.00034104,2]
[322261754,1712916692207,-508.0,0.00034104,2]
[322261755,1712916692217,-160.62596681,0.00034135,7]
[322261756,1712916692227,-500.0,0.0003418,2]
[322261757,1712916692236,-500.0,0.0003418,2]
[322261758,1712916692245,-500.0,0.0003418,2]
[322261759,1712916692255,-500.0,0.0003418,2]
[322261760,1712916692265,-500.0,0.0003418,2]
[322261761,1712916692275,-500.0,0.0003418,2]
[322261762,1712916692287,-506.52,0.00034204,7]
[322261763,1712916692297,-500.0,0.00034204,7]
[322261764,1712916692307,-500.0,0.00034204,7]
[322261765,1712916692317,-527.69,0.00034204,7]
[322261766,1712916692327,-500.0,0.00034204,7]
[322261767,1712916692337,-500.0,0.00034204,7]
[322261768,1712916692347,-666.66,0.00034204,7]
[322261769,1712916692358,-752.76,0.00034204,7]
[322261770,1712916692368,-586.11,0.00034204,7]
[322261771,1712916692378,-537.49,0.00034204,7]
[322261772,1712916692388,-500.0,0.00034204,7]
[322261773,1712916692398,-764.86,0.00034204,7]
[322261774,1712916692409,-500.0,0.00034204,7]
[322261775,1712916692418,-550.76,0.00034204,7]
[322261776,1712916692428,-500.0,0.00034204,7]
[322261777,1712916692438,-813.78,0.00034204,7]
[322261778,1712916692447,-720.83,0.00034204,7]
[322261779,1712916692457,-638.66,0.00034205,7]
[322261780,1712916692467,-500.0,0.00034205,7]
[322261781,1712916692477,-500.0,0.00034205,7]
[322261782,1712916692486,-577.83,0.00034205,7]
[322261783,1712916692496,-544.32,0.00034205,7]
[322261784,1712916692507,-638.14,0.00034205,7]
[322261785,1712916692517,-708.33,0.00034205,2]
[322261786,1712916692527,-597.04,0.00034205,7]
[322261787,1712916692537,-396.53704286,0.00034205,7]
[322261788,1712916692547,-507.78,0.00034205,7]
[322261789,1712916692557,-368.0,0.00034217,5]
[322261790,1712916692568,-200.0,0.00034217,10]
[322261791,1712916692579,-1000.0,0.00034217,15]
[322261792,1712916692589,-500.0,0.00034217,10]
[322261793,1712916692599,-500.0,0.00034217,10]
[322261794,1712916692609,-154.6828105,0.00034234,7]
[322261795,1712916692619,-960.0,0.00034246,2]
[322261796,1712916692629,-153.95330426,0.00034272,7]
[322261797,1712916692639,-25648.00782441,0.00034292,2]
[322261798,1712916692649,-156.08416384,0.0003434,7]
[322261799,1712916692659,-150.0,0.000344,4]
[322261800,1712916692669,-155.07714216,0.00034455,7]
[322261801,1712916692680,-506.52,0.00034478,7]
[322261802,1712916692693,-500.0,0.00034478,7]
[322261803,1712916692703,-500.0,0.00034478,7]
[322261804,1712916692713,-527.69,0.00034478,7]
[322261805,1712916692724,-500.0,0.00034478,7]
[322261806,1712916692735,-500.0,0.00034478,7]
[322261807,1712916692744,-666.66,0.00034478,7]
[322261808,1712916692755,-752.76,0.00034478,7]
[322261809,1712916692766,-586.11,0.00034478,7]
[322261810,1712916692777,-537.49,0.00034478,7]
[322261811,1712916692789,-500.0,0.00034478,7]
[322261812,1712916692798,-764.86,0.00034478,7]
[322261813,1712916692807,-500.0,0.00034478,7]
[322261814,1712916692917,-550.76,0.00034478,7]
[322261815,1712916692929,-486.99,0.00034478,7]
[322261816,1712916692939,-813.78,0.00034478,7]
[322261817,1712916692950,-720.83,0.00034478,7]
[322261818,1712916692960,-638.66,0.00034479,7]
[322261819,1712916692971,-500.0,0.00034479,7]
[322261820,1712916692981,-500.0,0.00034479,7]
[322261821,1712916692992,-577.83,0.00034479,7]
[322261822,1712916693003,-544.32,0.00034479,7]
[322261823,1712916693013,-638.14,0.00034479,7]
[322261824,1712916693023,-708.33,0.00034479,2]
[322261825,1712916693034,-597.04,0.00034479,7]
[322261826,1712916693045,-507.78,0.00034479,7]
[322261827,1712916693056,-159.14360615,0.00034517,7]
[322261828,1712916693066,-211.0,0.0003455,2]
[322261829,1712916693075,-211.0,0.0003455,2]
[322261830,1712916693084,-211.0,0.0003455,2]
[322261831,1712916693094,-157.43248173,0.00034553,7]
[322261832,1712916693103,-1757.99,0.00034555,30]
[322261833,1712916693112,-1757.99,0.00034555,30]
[322261834,1712916693122,-1757.99,0.00034555,30]
[322261835,1712916693131,-1757.99,0.00034555,30]
[322261836,1712916693141,-154.30704407,0.00034573,7]
[322261837,1712916693150,-151.0,0.00034622,2]
[322261838,1712916693159,-159.14360615,0.00034672,7]
[322261839,1712916693168,-160.62596681,0.00034725,7]
[322261840,1712916693178,-506.52,0.00034752,7]
[322261841,1712916693187,-500.0,0.00034752,7]
[322261842,1712916693198,-527.69,0.00034752,7]
[322261843,1712916693208,-500.0,0.00034752,7]
[322261844,1712916693218,-666.66,0.00034752,7]
[322261845,1712916693229,-752.76,0.00034752,7]
[322261846,1712916693239,-586.11,0.00034752,7]
[322261847,1712916693251,-537.49,0.00034752,7]
[322261848,1712916693262,-500.0,0.00034752,7]
[322261849,1712916693272,-764.86,0.00034752,7]
[322261850,1712916693283,-550.76,0.00034752,7]
[322261851,1712916693296,-813.78,0.00034752,7]
[322261852,1712916693306,-720.83,0.00034752,7]
[322261853,1712916693317,-151.0,0.00034752,7]
[322261854,1712916693328,-151.0,0.00034752,7]
[322261855,1712916693339,-156.415468,0.00034752,7]
[322261856,1712916693350,-151.0,0.00034752,7]
[322261857,1712916693360,-156.415468,0.00034752,7]
[322261858,1712916693369,-151.0,0.00034752,7]
[322261859,1712916693379,-151.0,0.00034752,7]
[322261860,1712916693388,-773.073157,0.00034752,7]
[322261861,1712916693397,-773.073157,0.00034752,7]
[322261862,1712916693406,-151.0,0.00034752,7]
[322261863,1712916693415,-151.0,0.00034752,7]
[322261864,1712916693424,-638.66,0.00034753,7]
[322261865,1712916693434,-500.0,0.00034753,7]
[322261866,1712916693443,-500.0,0.00034753,7]
[322261867,1712916693453,-577.83,0.00034753,7]
[322261868,1712916693462,-544.32,0.00034753,7]
[322261869,1712916693472,-638.14,0.00034753,7]
[322261870,1712916693481,-708.33,0.00034753,2]
[322261871,1712916693490,-597.04,0.00034753,7]
[322261872,1712916693499,-507.78,0.00034753,7]
[322261873,1712916693508,-160.62596681,0.00034753,7]
[322261874,1712916693517,-15277.67694784,0.000348,14]
[322261875,1712916693527,-151.0,0.000348,7]
[322261876,1712916693537,-151.0,0.000348,7]
[322261877,1712916693546,-151.0,0.000348,7]
[322261878,1712916693555,-297.355158,0.000348,7]
[322261879,1712916693564,-151.0,0.000348,7]
[322261880,1712916693574,-151.0,0.000348,7]
[322261881,1712916693583,-151.0,0.000348,7]
[322261882,1712916693592,-151.0,0.000348,7]
[322261883,1712916693602,-151.0,0.000348,7]
[322261884,1712916693611,-178.002196,0.000348,7]
[322261885,1712916693620,-151.0,0.000348,7]
[322261886,1712916693630,-178.002196,0.000348,7]
[322261887,1712916693640,-151.0,0.000348,7]
[322261888,1712916693649,-151.0,0.000348,7]
[322261889,1712916693659,-246.653703,0.000348,7]
[322261890,1712916693668,-246.653703,0.000348,7]
[322261891,1712916693679,-169.982612,0.000348,7]
[322261892,1712916693689,-169.982612,0.000348,7]
[322261893,1712916693698,-154.57743463,0.00034814,7]